fUSD/lending_fUSD_20250823
["ID","MTS","AMOUNT","RATE_DAILY","PERIOD"]
[381036420,1755965444617,-1259.27969,0.0001967,2]
[381036421,1755965444627,-3802.30931705,0.0001968,2]
[381036422,1755965444683,-1990.82755489,0.0001968,2]
[381036423,1755965444694,-1192.125,0.0001968,2]
[381036463,1755965446582,-288.4975,0.0001968,2]
[381036464,1755965446593,-354.70923108,0.0001968,2]
[381036465,1755965446604,-294.965,0.0001968,2]
[381036466,1755965446615,-1078.72167668,0.0001968,2]
[381036467,1755965446749,-18889.1420902,0.0001968,2]
[381036468,1755965446759,-170.87044723,0.0001969,2]
[381036469,1755965446768,-5400.0,0.000197,7]
[381036470,1755965446777,-458.60200496,0.000197,7]
[381036471,1755965446787,-816.9457498,0.00019703,2]
[381036472,1755965446796,-170.87044723,0.00019712,2]
[381036473,1755965446805,-310.03,0.00019717,2]
[381036474,1755965446814,-200.0,0.00019726,2]
[381036475,1755965446823,-156.587,0.00019726,2]
[381036476,1755965446832,-1161.64209956,0.00019733,2]
[381036477,1755965446842,-170.87044723,0.00019734,2]
[381036478,1755965446851,-300.0,0.00019739,2]
[381036479,1755965446860,-216.33065177,0.0001974,3]
[381036480,1755965446869,-170.87044723,0.00019756,2]
[381036481,1755965446879,-160.50645651,0.00019763,2]
[381036482,1755965446889,-18039.9598,0.0001977,2]
[381036483,1755965446900,-5000.0,0.0001977,2]
[381036484,1755965446910,-170.87044723,0.00019779,2]
[381036485,1755965446919,-698.36219226,0.000198,2]
[381036486,1755965446928,-7200.0,0.000198,7]
[381036487,1755965446937,-170.87044723,0.00019801,2]
[381036488,1755965446946,-170.87044723,0.00019823,2]
[381036489,1755965446954,-114280.5358824,0.00019838,2]
[381036490,1755965446963,-168.0,0.0001984,2]
[381036491,1755965446972,-170.87044723,0.00019845,2]
[381036492,1755965446981,-500.0,0.0001985,2]
[381036493,1755965446990,-150.0,0.00019854,2]
[381036494,1755965446999,-150.0,0.00019854,2]
[381036495,1755965447009,-500.0,0.00019854,2]
[381036496,1755965447018,-500.0,0.00019854,2]
[381036497,1755965447027,-150.0,0.00019854,2]
[381036498,1755965447036,-948.0,0.00019854,2]
[381036499,1755965447046,-500.0,0.00019854,2]
[381036500,1755965447056,-530.0,0.00019854,2]
[381036501,1755965447069,-150.0,0.00019854,2]
[381036502,1755965447078,-150.0,0.00019854,2]
[381036503,1755965447088,-150.0,0.00019854,2]
[381036504,1755965447098,-150.0,0.00019854,2]
[381036505,1755965447108,-500.0,0.00019854,2]
[381036506,1755965447117,-168.0,0.00019857,2]
[381036507,1755965447127,-1699.0962427,0.00019857,2]
[381036508,1755965447137,-1521.4915606,0.00019857,2]
[381036509,1755965447147,-704.12,0.00019863,2]
[381036510,1755965447157,-170.87044723,0.00019868,2]
[381036511,1755965447166,-1026.0,0.0001987,2]
[381036512,1755965447175,-505068.81424417,0.0001987,2]
[381036513,1755965447187,-10980.23677699,0.0001987,2]
[381036514,1755965447198,-36131.86754082,0.0001987,2]
[381036515,1755965447221,-450.94735893,0.0001987,2]
[381036516,1755965447397,-833.14876927,0.0001987,2]
[381036517,1755965447409,-14510.53987024,0.0001987,2]
[381036518,1755965447420,-6848.56751477,0.0001987,2]
[381036519,1755965447432,-550.17999987,0.0001987,2]
[381036575,1755965469982,178.39330793,0.00028,120]
[381036580,1755965650674,594.64,0.00028767,120]
[381036610,1755966336711,15000.0,9e-05,2]
[381036611,1755966337247,3287.68225736,9e-05,2]
[381036618,1755966354007,195.07,0.00025819,120]
[381036671,1755966525051,-172.87127687,0.00010136,2]
[381036672,1755966527205,-220.01152341,0.00010136,2]
[381036676,1755966607269,225.0,0.00025733,120]
[381036677,1755966608570,225.0,0.0002702,120]
[381036681,1755966631541,-900.0,0.000115,4]
[381036682,1755966631551,-310.0,0.0001155,2]
[381036683,1755966631561,-150.0,0.0001155,2]
[381036684,1755966631571,-250.0,0.0001155,2]
[381036685,1755966631581,-1800.0,0.000116,4]
[381036686,1755966631591,-162.63876086,0.000116,2]
[381036687,1755966631601,-2700.0,0.000117,4]
[381036688,1755966631610,-310.0,0.000117,2]
[381036689,1755966631620,-1200.0,0.00011798,2]
[381036690,1755966631630,-3600.0,0.000118,4]
[381036691,1755966631639,-4500.0,0.000119,4]
[381036692,1755966631649,-577.58688729,0.000119,2]
[381036693,1755966631658,-160.50645651,0.000119,2]
[381036694,1755966631668,-1889.68277889,0.000119,2]
[381036695,1755966631677,-500.0,0.00011973,2]
[381036696,1755966631687,-334.89477406,0.00011999,2]
[381036697,1755966631697,-174.26843929,0.00011999,2]
[381036698,1755966631709,-1036.48856282,0.00011999,3]
[381036699,1755966631718,-150.0,0.00011999,2]
[381036700,1755966631728,-10917.79529312,0.00012,2]
[381036701,1755966631738,-80558.14230967,0.00012,2]
[381036702,1755966631758,-2396.05699867,0.00012,2]
[381036703,1755966631769,-1149.80000008,0.00012,2]
[381036704,1755966631781,-4451.1585,0.00012,2]
[381036705,1755966631793,-644.504,0.00012,2]
[381036706,1755966631821,-6240.59541577,0.00012,2]
[381036707,1755966631833,-675.0,0.00012,2]
[381036708,1755966631867,-7423.44782023,0.00012,2]
[381036714,1755966631931,-1130.1,0.00012,2]
[381036803,1755966637567,-734.68573514,0.0001199,2]
[381036804,1755966637576,-734.68573514,0.0001199,2]
[381036805,1755966637586,-734.68573514,0.0001199,2]
[381036806,1755966637595,-139.94279458,0.00012,2]
[381036807,1755966637673,-272114.58911966,0.00012,2]
[381036808,1755966637683,-2000.0,0.00012,3]
[381036809,1755966637693,-3875615.29827944,0.00012,2]
[381036810,1755966637702,-1206427.8288514,0.00012,2]
[381036811,1755966637782,-391261.99397722,0.00012,2]
[381036812,1755966637794,-1101.78380092,0.00012,2]
[381036862,1755966639542,-11514.9051544,0.00012,2]
[381036863,1755966639696,-7728.2465075,0.00012,2]
[381036864,1755966639709,-8338.13906801,0.00012,2]
[381036865,1755966639831,-4765.28526036,0.00012,2]
[381036866,1755966639865,-8635.2422803,0.00012,2]
[381036867,1755966639876,-1222.23539997,0.00012,2]
[381036868,1755966639922,-434.99998,0.00012,2]
[381036869,1755966639933,-2683153.60341257,0.00012,2]
[381036870,1755966639944,-211516.32,0.00012,2]
[381036871,1755966639953,-151.0,0.00012,2]
[381036872,1755966639963,-302.0,0.00012,2]
[381036873,1755966639972,-7905.8,0.00012,2]
[381036875,1755966639981,-454.89,0.00012019,2]
[381036876,1755966639990,-604.95,0.00012321,2]
[381036877,1755966640000,-505.70033378,0.00012521,2]
[381036878,1755966640009,-500.0,0.000126,2]
[381036879,1755966640018,-168.3,0.00012624,2]
[381036880,1755966640027,-310.0,0.0001265,2]
[381036881,1755966640036,-2500.0,0.0001265,2]
[381036882,1755966640045,-150.0,0.0001265,2]
[381036883,1755966640054,-300.0,0.0001265,2]
[381036884,1755966640063,-500.0,0.0001265,2]
[381036885,1755966640072,-250.0,0.0001265,2]
[381036886,1755966640081,-500.0,0.0001281,2]
[381036888,1755966640091,-1680.0,0.00012978,2]
[381036889,1755966640100,-4343.9577659,0.00013,2]
[381036890,1755966640114,-500.0,0.0001302,2]
[381036891,1755966640124,-255.0,0.00013079,2]
[381036892,1755966640132,-2000.0,0.000132,3]
[381036893,1755966640142,-1632.0,0.00013337,2]
[381036894,1755966640151,-229.11072785,0.00013337,2]
[381036895,1755966640160,-160.50645651,0.0001349,2]
[381036896,1755966640170,-160.0,0.00013685,7]
[381036897,1755966640179,-500.0,0.0001369,2]
[381036898,1755966640188,-200.0,0.0001369,2]
[381036899,1755966640198,-305.11,0.00013697,2]
[381036900,1755966640207,-305.06,0.00013697,2]
[381036901,1755966640216,-300.12,0.00013697,2]
[381036902,1755966640226,-300.64,0.00013697,2]
[381036903,1755966640235,-304.52,0.00013697,2]
[381036904,1755966640245,-302.25,0.00013697,2]
[381036905,1755966640254,-305.59,0.00013697,2]
[381036906,1755966640263,-302.85,0.00013697,2]
[381036907,1755966640272,-300.36,0.00013697,2]
[381036908,1755966640281,-429.8,0.00013697,2]
[381036909,1755966640291,-416.96,0.00013697,2]
[381036910,1755966640300,-416.54,0.00013697,2]
[381036911,1755966640309,-300.85,0.00013697,2]
[381036912,1755966640319,-301.34,0.00013697,2]
[381036913,1755966640328,-421.36,0.00013697,2]
[381036914,1755966640337,-425.58,0.00013697,2]
[381036915,1755966640347,-428.58,0.00013697,2]
[381036916,1755966640355,-431.74,0.00013698,2]
[381036917,1755966640364,-429.64,0.00013698,2]
[381036918,1755966640373,-303.7,0.00013698,2]
[381036919,1755966640382,-422.31,0.00013698,2]
[381036920,1755966640392,-430.5,0.00013698,2]
[381036921,1755966640401,-301.14,0.00013698,2]
[381036922,1755966640414,-425.84,0.00013698,2]
[381036923,1755966640423,-419.36,0.00013698,2]
[381036924,1755966640432,-422.68,0.00013698,2]
[381036925,1755966640441,-305.57,0.00013698,2]
[381036926,1755966640452,-426.55,0.00013698,2]
[381036927,1755966640462,-432.37,0.00013698,2]
[381036928,1755966640471,-302.9,0.00013698,2]
[381036929,1755966640482,-433.25,0.00013698,2]
[381036930,1755966640491,-427.6,0.00013698,2]
[381036931,1755966640501,-419.35,0.00013698,2]
[381036932,1755966640511,-303.24,0.00013698,2]
[381036933,1755966640520,-423.11,0.00013698,2]
[381036934,1755966640529,-430.9,0.00013698,2]
[381036935,1755966640538,-301.02,0.00013698,2]
[381036936,1755966640547,-305.23,0.00013698,2]
[381036937,1755966640556,-433.4,0.00013698,2]
[381036938,1755966640565,-416.61,0.00013698,2]
[381036939,1755966640575,-428.98,0.00013698,2]
[381036940,1755966640584,-428.0,0.00013698,2]
[381036941,1755966640593,-422.97,0.00013698,2]
[381036942,1755966640602,-151.0,0.00013699,2]
[381036943,1755966640611,-500.0,0.00013699,2]
[381036944,1755966640621,-1000.0,0.00013699,2]
[381036945,1755966640630,-426.08,0.00013699,2]
[381036946,1755966640639,-431.92,0.00013699,2]
[381036947,1755966640648,-425.61,0.00013699,2]
[381036948,1755966640657,-432.46,0.00013699,2]
[381036949,1755966640666,-425.44,0.00013699,2]
[381036950,1755966640675,-416.68,0.00013699,2]
[381036951,1755966640686,-419.56,0.00013699,2]
[381036952,1755966640695,-420.74,0.00013699,2]
[381036953,1755966640704,-422.82,0.00013699,2]
[381036955,1755966640714,-427.93,0.00013699,2]
[381036957,1755966640724,-302.72,0.00013699,2]
[381036958,1755966640733,-430.96,0.00013699,2]
[381036959,1755966640743,-432.43,0.00013699,2]
[381036960,1755966640753,-432.3,0.00013699,2]
[381036961,1755966640763,-303.49,0.00013699,2]
[381036962,1755966640772,-430.85,0.00013699,2]
[381036963,1755966640781,-417.31,0.00013699,2]
[381036964,1755966640790,-303.39,0.00013699,2]
[381036965,1755966640799,-427.73,0.00013699,2]
[381036966,1755966640809,-419.01,0.00013699,2]
[381036967,1755966640818,-425.06,0.00013699,2]
[381036968,1755966640828,-300.48,0.00013699,2]
[381036969,1755966640837,-428.27,0.00013699,2]
[381036970,1755966640847,-417.79,0.00013699,2]
[381036971,1755966640856,-300.72,0.00013699,2]
[381036972,1755966640866,-427.46,0.00013699,2]
[381036973,1755966640875,-427.06,0.00013699,2]
[381036974,1755966640884,-423.89,0.00013699,2]
[381036975,1755966640893,-300.25,0.00013699,2]
[381036976,1755966640903,-424.88,0.00013699,2]
[381036977,1755966640911,-421.85,0.00013699,2]
[381036978,1755966640921,-303.79,0.00013699,2]
[381036979,1755966640930,-300.85,0.00013699,2]
[381036980,1755966640939,-429.69,0.00013699,2]
[381036981,1755966640948,-300.98,0.00013699,2]
[381036982,1755966640957,-420.75,0.00013699,2]
[381036983,1755966640967,-431.79,0.00013699,2]
[381036984,1755966640976,-304.15,0.00013699,2]
[381036985,1755966640986,-422.69,0.00013699,2]
[381036986,1755966640995,-433.04,0.00013699,2]
[381036987,1755966641004,-423.2,0.00013699,2]
[381036988,1755966641013,-420.5,0.00013699,2]
[381036989,1755966641021,-419.32,0.00013699,2]
[381036990,1755966641030,-429.7,0.00013699,2]
[381036991,1755966641039,-423.29,0.00013699,2]
[381036992,1755966641048,-302.96,0.00013699,2]
[381036993,1755966641058,-423.05,0.00013699,2]
[381036994,1755966641067,-425.93,0.00013699,2]
[381036995,1755966641076,-417.7,0.00013699,2]
[381036996,1755966641085,-305.27,0.00013699,2]
[381036997,1755966641094,-416.88,0.00013699,2]
[381036998,1755966641103,-428.21,0.00013699,2]
[381036999,1755966641113,-302.51,0.00013699,2]
[381037000,1755966641122,-433.0,0.00013699,2]
[381037001,1755966641132,-423.83,0.00013699,2]
[381037002,1755966641140,-303.33,0.00013699,2]
[381037003,1755966641149,-428.05,0.00013699,2]
[381037004,1755966641159,-420.48,0.00013699,2]
[381037005,1755966641168,-430.66,0.00013699,2]
[381037006,1755966641177,-302.78,0.00013699,2]
[381037007,1755966641186,-425.8,0.00013699,2]
[381037008,1755966641197,-425.09,0.00013699,2]
[381037009,1755966641208,-304.45,0.00013699,2]
[381037010,1755966641217,-398.87,0.00013699,2]
[381037011,1755966641227,-200.0,0.00013699,2]
[381037012,1755966641237,-276.85,0.000137,2]
[381037013,1755966641247,-276.85,0.000137,2]
[381037014,1755966641256,-276.85,0.000137,2]
[381037015,1755966641265,-276.85,0.000137,2]
[381037016,1755966641276,-276.85,0.000137,2]
[381037017,1755966641287,-500.0,0.00013745,2]
[381037018,1755966641298,-500.0,0.000138,2]
[381037019,1755966641309,-500.0,0.00013855,2]
[381037020,1755966641320,-9517.63148599,0.000139,2]
[381037021,1755966641330,-500.0,0.0001391,2]
[381037022,1755966641339,-1523.0,0.00013926,2]
[381037023,1755966641348,-500.0,0.00013965,2]
[381037024,1755966641358,-14031.55537864,0.00014,3]
[381037025,1755966641367,-500.0,0.0001402,2]
[381037026,1755966641377,-500.0,0.00014075,2]
[381037027,1755966641387,-500.0,0.0001413,2]
[381037028,1755966641396,-1000.0,0.00014169,2]
[381037029,1755966641406,-500.0,0.00014185,2]
[381037030,1755966641420,-500.0,0.0001424,2]
[381037031,1755966641429,-433.0,0.00014254,2]
[381037032,1755966641439,-2043.0,0.00014276,2]
[381037033,1755966641448,-7905.8,0.000143,2]
[381037034,1755966641458,-168.3,0.00014707,2]
[381037035,1755966641467,-67492.72304266,0.00015,2]
[381037036,1755966641476,-160.50645651,0.0001508,2]
[381037037,1755966641486,-1517.64,0.000153,2]
[381037038,1755966641497,-497.86348787,0.000154,2]
[381037039,1755966641508,-1048.27756571,0.00015501,2]
[381037040,1755966641517,-456.60604795,0.00015501,2]
[381037041,1755966641527,-286.0,0.00015538,2]
[381037042,1755966641536,-250.0,0.00015697,2]
[381037043,1755966641545,-777.0,0.00015795,2]
[381037044,1755966641554,-211516.32,0.000158,2]
[381037045,1755966641563,-151.0,0.000158,2]
[381037046,1755966641571,-8310.267117,0.000158,2]
[381037047,1755966641580,-151.0,0.000158,2]
[381037048,1755966641589,-151.0,0.000158,2]
[381037049,1755966641598,-151.0,0.000158,2]
[381037050,1755966641607,-151.0,0.000158,2]
[381037051,1755966641617,-8310.267117,0.000158,2]
[381037052,1755966641626,-151.0,0.000158,2]
[381037053,1755966641635,-151.0,0.000158,2]
[381037054,1755966641643,-8310.267117,0.000158,2]
[381037055,1755966641652,-151.062649,0.000158,2]
[381037056,1755966641662,-8310.267117,0.000158,2]
[381037057,1755966641671,-151.0,0.000158,2]
[381037058,1755966641680,-151.0,0.000158,2]
[381037059,1755966641689,-245.274524,0.000158,2]
[381037060,1755966641698,-151.0,0.000158,2]
[381037061,1755966641708,-1332.0,0.00015832,2]
[381037062,1755966641718,-2433.41713233,0.00016,2]
[381037063,1755966641727,-554.04627419,0.00016,2]
[381037064,1755966641736,-212.10093811,0.00016,3]
[381037065,1755966641745,-458.60200496,0.00016,3]
[381037066,1755966641755,-2991.92785472,0.0001616,2]
[381037067,1755966641764,-153.0,0.00016164,2]
[381037068,1755966641773,-153.0,0.00016164,2]
[381037069,1755966641782,-153.0,0.00016164,2]
[381037070,1755966641791,-153.0,0.00016164,2]
[381037071,1755966641800,-153.0,0.00016164,2]
[381037072,1755966641809,-153.0,0.00016164,2]
[381037073,1755966641818,-153.0,0.00016164,2]
[381037074,1755966641827,-153.0,0.00016164,2]
[381037075,1755966641836,-153.0,0.00016164,2]
[381037076,1755966641845,-153.0,0.00016164,2]
[381037077,1755966641854,-153.0,0.00016164,2]
[381037078,1755966641863,-153.0,0.00016164,2]
[381037079,1755966641872,-153.0,0.00016164,2]
[381037080,1755966641882,-153.0,0.00016164,2]
[381037081,1755966641891,-151.0,0.00016296,2]
[381037082,1755966641900,-151.0,0.00016313,2]
[381037083,1755966641909,-151.0,0.00016315,2]
[381037084,1755966641919,-151.0,0.00016325,2]
[381037085,1755966641929,-200.0,0.0001634,2]
[381037086,1755966641939,-2066.53,0.00016389,2]
[381037087,1755966641948,-925.0,0.00016389,2]
[381037088,1755966641957,-6093.0,0.00016389,2]
[381037089,1755966641967,-3373.0,0.00016389,2]
[381037090,1755966641976,-1255.0,0.00016389,2]
[381037091,1755966641985,-599.0,0.00016389,2]
[381037092,1755966641994,-566.0,0.00016389,2]
[381037093,1755966642003,-1298.0,0.00016389,2]
[381037094,1755966642012,-4153.0,0.00016389,2]
[381037095,1755966642021,-718.0,0.00016389,2]
[381037096,1755966642030,-1657.0,0.00016389,2]
[381037097,1755966642039,-151.0,0.00016438,2]
[381037098,1755966642048,-2000.0,0.00016438,2]
[381037099,1755966642059,-500.0,0.00016438,2]
[381037100,1755966642068,-600.0,0.00016438,2]
[381037101,1755966642078,-600.0,0.00016438,2]
[381037102,1755966642087,-600.0,0.00016438,2]
[381037103,1755966642097,-600.0,0.00016438,2]
[381037104,1755966642107,-600.0,0.00016438,2]
[381037105,1755966642116,-600.0,0.00016438,2]
[381037106,1755966642125,-600.0,0.00016438,2]
[381037107,1755966642134,-600.0,0.00016438,2]
[381037108,1755966642144,-600.0,0.00016438,2]
[381037109,1755966642153,-600.0,0.00016438,2]
[381037110,1755966642162,-600.0,0.00016438,2]
[381037111,1755966642171,-500.0,0.00016457,2]
[381037112,1755966642180,-151.0,0.00016476,2]
[381037113,1755966642189,-151.0,0.00016476,2]
[381037114,1755966642198,-199.006841,0.00016476,2]
[381037115,1755966642207,-151.0,0.00016476,2]
[381037116,1755966642217,-151.0,0.00016476,2]
[381037117,1755966642226,-199.006841,0.00016476,2]
[381037118,1755966642235,-348.219084,0.00016476,2]
[381037119,1755966642244,-199.006841,0.00016476,2]
[381037120,1755966642253,-348.219084,0.00016476,2]
[381037121,1755966642262,-151.0,0.00016476,2]
[381037122,1755966642271,-199.006841,0.00016476,2]
[381037123,1755966642280,-2802.915347,0.00016476,2]
[381037124,1755966642289,-151.0,0.00016476,2]
[381037125,1755966642299,-348.219084,0.00016476,2]
[381037126,1755966642307,-225.74452,0.00016476,2]
[381037127,1755966642316,-2802.915347,0.00016476,2]
[381037128,1755966642326,-348.219084,0.00016476,2]
[381037129,1755966642335,-225.74452,0.00016476,2]
[381037130,1755966642344,-2802.915347,0.00016476,2]
[381037131,1755966642353,-225.74452,0.00016476,2]
[381037132,1755966642362,-2802.915347,0.00016476,2]
[381037133,1755966642371,-225.74452,0.00016476,2]
[381037134,1755966642381,-151.0,0.00016476,2]
[381037135,1755966642390,-1278.362323,0.00016476,2]
[381037136,1755966642398,-1278.362323,0.00016476,2]
[381037137,1755966642408,-1278.362323,0.00016476,2]
[381037138,1755966642422,-1278.362323,0.00016476,2]
[381037139,1755966642432,-151.0,0.00016476,2]
[381037140,1755966642441,-196.177788,0.00016476,2]
[381037141,1755966642450,-196.177788,0.00016476,2]
[381037142,1755966642461,-196.177788,0.00016476,2]
[381037143,1755966642470,-196.177788,0.00016476,2]
[381037144,1755966642479,-500.0,0.00016476,2]
[381037145,1755966642493,-500.0,0.00016495,2]
[381037146,1755966642503,-7905.8,0.000165,2]
[381037148,1755966642511,-500.0,0.00016514,2]
[381037150,1755966642521,-500.0,0.00016533,2]
[381037151,1755966642530,-500.0,0.00016553,2]
[381037153,1755966642539,-500.0,0.00016572,2]
[381037154,1755966642549,-500.0,0.00016591,2]
[381037156,1755966642558,-300.0,0.00016599,2]
[381037158,1755966642568,-300.0,0.00016599,2]
[381037159,1755966642577,-300.0,0.00016599,2]
[381037161,1755966642586,-300.0,0.00016599,2]
[381037163,1755966642595,-300.0,0.00016599,2]
[381037164,1755966642604,-300.0,0.00016599,2]
[381037166,1755966642614,-264781.0387698,0.000166,3]
[381037168,1755966642623,-352.86478907,0.000166,2]
[381037169,1755966642631,-212.10093811,0.000166,3]
[381037171,1755966642641,-458.60200496,0.000166,3]
[381037173,1755966642650,-500.0,0.0001661,2]
[381037174,1755966642659,-500.0,0.00016629,2]
[381037176,1755966642668,-500.0,0.00016648,2]
[381037178,1755966642678,-500.0,0.00016667,2]
[381037180,1755966642688,-160.50645651,0.0001667,2]
[381037181,1755966642698,-500.0,0.00016686,2]
[381037183,1755966642707,-500.0,0.00016705,2]
[381037185,1755966642719,-158.44,0.00016712,2]
[381037186,1755966642727,-500.0,0.00016724,2]
[381037188,1755966642737,-500.0,0.00016743,2]
[381037190,1755966642750,-500.0,0.00016762,2]
[381037191,1755966642759,-500.0,0.00016781,2]
[381037193,1755966642770,-500.0,0.000168,2]
[381037195,1755966642780,-500.0,0.00016819,2]
[381037196,1755966642789,-500.0,0.00016838,2]
[381037198,1755966642799,-500.0,0.00016857,2]
[381037199,1755966642808,-500.0,0.00016876,2]
[381037200,1755966642821,-500.0,0.00016895,2]
[381037201,1755966642831,-500.0,0.00016914,2]
[381037202,1755966642842,-500.0,0.00016933,2]
[381037203,1755966642852,-500.0,0.00016952,2]
[381037204,1755966642862,-500.0,0.00016971,2]
[381037205,1755966642872,-500.0,0.0001699,2]
[381037206,1755966642882,-51415.75756611,0.00017,2]
[381037207,1755966642893,-50397.67274759,0.00017,2]
[381037208,1755966642902,-500.0,0.00017009,2]
[381037209,1755966642912,-500.0,0.00017028,2]
[381037210,1755966642923,-500.0,0.00017047,2]
[381037211,1755966642934,-500.0,0.00017066,2]
[381037212,1755966642944,-844.27675029,0.00017066,2]
[381037213,1755966642954,-500.0,0.00017085,2]
[381037214,1755966642966,-160.0,0.00017097,2]
[381037215,1755966642976,-458.60200496,0.00017097,2]
[381037216,1755966642986,-500.0,0.00017104,2]
[381037217,1755966642995,-500.0,0.00017123,2]
[381037218,1755966643005,-500.0,0.00017142,2]
[381037219,1755966643015,-500.0,0.00017161,2]
[381037220,1755966643025,-500.0,0.0001718,2]
[381037221,1755966643035,-500.0,0.00017199,2]
[381037222,1755966643045,-195.07,0.00017212,2]
[381037223,1755966643055,-500.0,0.00017218,2]
[381037224,1755966643065,-500.0,0.00017237,2]
[381037225,1755966643075,-666.0,0.0001724,3]
[381037226,1755966643085,-604.95,0.00017249,2]
[381037227,1755966643095,-500.0,0.00017256,2]
[381037228,1755966643104,-500.0,0.00017275,2]
[381037229,1755966643115,-500.0,0.00017295,2]
[381037230,1755966643125,-500.0,0.00017314,2]
[381037231,1755966643135,-500.0,0.00017333,2]
[381037232,1755966643144,-500.0,0.00017337,2]
[381037233,1755966643154,-500.0,0.00017337,2]
[381037234,1755966643164,-500.0,0.00017337,2]
[381037235,1755966643175,-500.0,0.00017337,2]
[381037236,1755966643185,-500.0,0.00017337,2]
[381037237,1755966643197,-522.15161724,0.00017343,2]
[381037238,1755966643207,-500.0,0.00017343,2]
[381037239,1755966643220,-500.0,0.00017343,2]
[381037240,1755966643235,-500.0,0.00017343,2]
[381037241,1755966643249,-276.17418804,0.00017343,2]
[381037242,1755966643259,-500.0,0.00017343,2]
[381037243,1755966643269,-500.0,0.00017343,2]
[381037244,1755966643279,-500.0,0.00017343,2]
[381037245,1755966643289,-467.83328922,0.00017343,2]
[381037246,1755966643299,-500.0,0.00017343,2]
[381037247,1755966643308,-164.10560054,0.00017343,2]
[381037248,1755966643318,-500.0,0.00017352,2]
[381037249,1755966643328,-500.0,0.0001737,2]
[381037250,1755966643339,-646.05499372,0.0001737,2]
[381037251,1755966643349,-500.0,0.0001737,2]
[381037252,1755966643359,-500.0,0.0001737,2]
[381037253,1755966643374,-500.0,0.0001737,2]
[381037254,1755966643384,-500.0,0.00017371,2]
[381037255,1755966643393,-500.0,0.0001739,2]
[381037256,1755966643403,-1000.0,0.00017399,2]
[381037257,1755966643419,-500.0,0.00017409,2]
[381037258,1755966643430,-500.0,0.00017428,2]
[381037259,1755966643440,-500.0,0.00017447,2]
[381037260,1755966643451,-500.0,0.00017466,2]
[381037261,1755966643463,-500.0,0.00017485,2]
[381037262,1755966643473,-300.0,0.00017499,2]
[381037263,1755966643484,-300.0,0.00017499,2]
[381037264,1755966643495,-300.0,0.00017499,2]
[381037265,1755966643505,-211516.32,0.000175,2]
[381037266,1755966643515,-151.0,0.000175,2]
[381037267,1755966643525,-199.006841,0.000175,2]
[381037268,1755966643536,-151.0,0.000175,2]
[381037269,1755966643546,-151.0,0.000175,2]
[381037270,1755966643556,-199.006841,0.000175,2]
[381037271,1755966643565,-348.219084,0.000175,2]
[381037272,1755966643575,-199.006841,0.000175,2]
[381037273,1755966643586,-348.219084,0.000175,2]
[381037274,1755966643596,-220.403461,0.000175,2]
[381037275,1755966643606,-199.006841,0.000175,2]
[381037276,1755966643615,-2802.915347,0.000175,2]
[381037277,1755966643626,-348.219084,0.000175,2]